bitfinex-derivatives/quotes_SOLF0:USTF0_20250221
["timestamp","ask_amount","ask_price","bid_price","bid_amount"]
[1740116416368,5.7094,175.11,175.07,10.13380103]
[1740116416765,0.03830121,175.11,175.07,15.88736246]
[1740116416966,0.03830121,175.11,175.07,10.17696246]
[1740116417167,0.03830121,175.11,175.09,10.13380103]
[1740116417471,0.03830121,175.11,175.1,5.7097]
[1740116418070,10.13380103,175.19,175.09,10.13380103]
[1740116418273,10.13380103,175.19,175.15,5.7079]
[1740116418274,208.02309901,175.19,175.15,5.7079]
[1740116418863,197.88929798,175.19,175.16,10.13380103]
[1740116419361,197.92534274,175.19,175.16,10.1770142]
[1740116419563,197.92534274,175.19,175.16,15.8846142]
[1740116420972,0.03604476,175.19,175.16,10.1770142]
[1740116421175,0.03604476,175.19,175.16,0.04321317]
[1740116422572,5.74294476,175.19,175.16,0.04321317]
[1740116424169,5.7074,175.17,175.16,0.04321317]
[1740116425861,15.84120103,175.17,175.16,0.04321317]
[1740116427974,10.13380103,175.17,175.16,0.04321317]
[1740116428173,15.87684579,175.19,175.16,0.04321317]
[1740116430771,10.16984579,175.19,175.16,0.04321317]
[1740116430977,15.84120103,175.17,175.16,0.04321317]
[1740116437083,5.7072,175.18,175.16,0.04321317]
[1740116437284,10.16984579,175.19,175.16,0.04321317]
[1740116437773,5.7074,175.17,175.16,0.04321317]
[1740116443283,5.7072,175.18,175.16,0.04321317]
[1740116443681,4.476e-05,175.19,175.17,10.13380103]
[1740116444076,4.476e-05,175.19,175.18,5.7071]
[1740116444279,10.81353145,175.21,175.17,13.52440103]
[1740116444584,197.88929798,175.22,175.2,10.13380103]
[1740116444779,197.88929798,175.22,175.2,15.84020103]
[1740116444984,197.88929798,175.22,175.2,10.13380103]
[1740116445882,5.74704865,175.23,175.2,10.13380103]
[1740116446287,5.74704865,175.23,175.2,10.17154577]
[1740116447295,0.04144865,175.23,175.2,10.17154577]
[1740116447688,0.04144865,175.23,175.2,15.87794577]
[1740116447894,0.04144865,175.23,175.2,10.17154577]
[1740116448290,0.04144865,175.23,175.22,5.7058]
[1740116449888,0.04144865,175.23,175.22,10.13380103]
[1740116453489,10.13380103,175.29,175.22,10.13380103]
[1740116454398,10.13380103,175.29,175.22,15.83930103]
[1740116454598,10.13380103,175.29,175.22,10.13380103]
[1740116454800,0.04189073,175.27,175.24,0.0374791]
[1740116456098,0.04189073,175.27,175.24,5.7426791]
[1740116456498,0.04189073,175.27,175.24,0.0374791]
[1740116458402,0.04189073,175.27,175.25,5.7048]
[1740116458806,0.04189073,175.27,175.24,0.0374791]
[1740116459003,0.04189073,175.27,175.25,5.7048]
[1740116461203,0.04189073,175.27,175.24,10.17128013]
[1740116461409,0.04189073,175.27,175.26,5.7045]
[1740116462503,0.04189073,175.27,175.26,15.83830103]
[1740116462701,10.13380103,175.33,175.29,5.7034]
[1740116463310,10.13380103,175.33,175.3,5.7031]
[1740116463510,10.13380103,175.33,175.26,10.13380103]
[1740116463709,10.13380103,175.33,175.28,0.04340663]
[1740116465514,15.83610103,175.33,175.28,5.74700663]
[1740116466104,10.13380103,175.29,175.28,0.04340663]
[1740116467507,15.83730103,175.29,175.28,0.04340663]
[1740116468214,5.705,175.25,175.2,5.7064]
[1740116468414,10.13380103,175.24,175.17,10.13380103]
[1740116469416,0.04278172,175.22,175.19,0.03694915]
[1740116470514,0.04278172,175.22,175.19,5.74364915]
[1740116470917,0.04278172,175.22,175.19,0.03694915]
[1740116471216,0.04278172,175.22,175.19,10.17075018]
[1740116471415,0.04278172,175.22,175.21,10.13380103]
[1740116471608,7.52,175.29,175.21,10.13380103]
[1740116471809,7.52,175.29,175.23,10.13380103]
[1740116472012,15.83710103,175.3,175.23,10.13380103]
[1740116472217,15.83710103,175.3,175.25,5.7045]
[1740116472418,5.7039,175.28,175.23,10.13380103]
[1740116472813,5.7039,175.28,175.24,5.74388133]
[1740116473715,5.7035,175.29,175.24,5.74388133]
[1740116473921,10.13380103,175.32,175.25,10.13380103]
[1740116474219,10.13380103,175.34,175.27,10.13380103]
[1740116474516,10.13380103,175.34,175.28,5.7038]
[1740116474517,5.7025,175.33,175.28,5.7038]
[1740116474721,10.13380103,175.34,175.29,0.04037205]
[1740116475820,5.7022,175.33,175.29,0.04037205]
[1740116477112,5.7022,175.33,175.29,5.74387205]
[1740116477314,5.7022,175.33,175.29,0.04037205]
[1740116478421,10.13380103,175.34,175.3,5.703]
[1740116479620,10.13380103,175.34,175.3,5.7031]
[1740116480822,10.13380103,175.34,175.29,0.04037205]
[1740116481023,10.13380103,175.34,175.31,5.7028]
[1740116481222,10.13380103,175.34,175.29,0.04037205]
[1740116481223,15.83570103,175.34,175.29,0.04037205]
[1740116481822,5.7022,175.33,175.3,5.7031]
[1740116482526,15.83580103,175.34,175.29,0.04037205]
[1740116482722,15.83580103,175.34,175.31,5.7028]
[1740116483026,10.13380103,175.34,175.29,10.17417308]
[1740116483421,10.13380103,175.34,175.31,5.7026]
[1740116483622,5.7018,175.35,175.31,5.7026]
[1740116485030,5.7022,175.34,175.3,5.7031]
[1740116486230,5.7024,175.33,175.29,15.87767308]
[1740116486425,5.7024,175.33,175.29,5.74387205]
[1740116486625,10.13380103,175.34,175.29,5.74387205]
[1740116487326,10.13380103,175.34,175.29,0.04037205]
[1740116487727,10.13380103,175.32,175.29,0.04037205]
[1740116487925,10.13380103,175.32,175.25,10.13380103]
[1740116488133,5.7036,175.29,175.23,10.13380103]
[1740116488327,10.13380103,175.3,175.27,0.03664524]
[1740116488630,5.7039,175.28,175.27,0.03664524]
[1740116488831,10.13380103,175.3,175.27,0.03664524]
[1740116490033,10.13380103,175.3,175.27,5.74074524]
[1740116490424,10.13380103,175.32,175.27,0.03664524]
[1740116490625,10.13380103,175.34,175.27,10.17044627]
[1740116491632,5.7019,175.34,175.29,5.7035]
[1740116491828,10.13380103,175.33,175.29,5.7035]
[1740116492028,10.13380103,175.33,175.27,10.17044627]
[1740116492829,5.7026,175.32,175.27,15.87434627]
[1740116493029,10.13380103,175.33,175.27,10.17044627]
[1740116493429,10.13380103,175.33,175.29,5.7033]
[1740116494134,10.13380103,175.33,175.27,10.17044627]
[1740116494327,10.13380103,175.31,175.27,0.03664524]
[1740116494738,10.13380103,175.31,175.27,5.74074524]
[1740116495428,10.13380103,175.31,175.28,5.7038]
[1740116496731,15.83670103,175.31,175.27,0.03664524]
[1740116496932,15.83670103,175.31,175.27,5.74074524]
[1740116497133,10.13380103,175.31,175.27,0.03664524]
[1740116497436,5.7032,175.3,175.27,5.74074524]
[1740116498136,15.83670103,175.31,175.28,5.7038]
[1740116499737,10.13380103,175.31,175.27,0.03664524]
[1740116499937,10.13380103,175.29,175.27,0.03664524]
[1740116500339,5.7039,175.28,175.27,0.03664524]
[1740116501039,10.13380103,175.29,175.27,0.03664524]
[1740116501040,15.83740103,175.29,175.27,0.03664524]
[1740116501238,10.13380103,175.29,175.27,0.03664524]
[1740116502740,10.13380103,175.31,175.27,0.03664524]
[1740116503539,10.13380103,175.31,175.28,5.7039]
[1740116503735,10.13380103,175.31,175.27,0.03664524]
[1740116503736,10.13380103,175.29,175.27,0.03664524]
[1740116506643,15.83760103,175.29,175.27,0.03664524]
[1740116507539,5.7039,175.28,175.27,0.03664524]
[1740116517755,10.13380103,175.29,175.27,0.03664524]
[1740116520451,15.83750103,175.29,175.27,0.03664524]
[1740116522256,10.13380103,175.29,175.27,0.03664524]
[1740116523756,15.83670103,175.31,175.27,5.74074524]
[1740116524553,5.7034,175.3,175.27,0.03664524]
[1740116525156,5.7037,175.29,175.27,0.03664524]
[1740116525755,10.13380103,175.31,175.27,0.03664524]
[1740116525956,5.7039,175.28,175.27,0.03664524]
[1740116527260,15.83740103,175.29,175.27,0.03664524]
[1740116528459,10.13380103,175.29,175.27,0.03664524]
[1740116528859,10.13380103,175.31,175.27,0.03664524]
[1740116529056,15.83670103,175.31,175.27,5.74064524]
[1740116529962,10.13380103,175.31,175.27,0.03664524]
[1740116530161,5.7032,175.3,175.27,0.03664524]
[1740116530357,10.13380103,175.31,175.27,0.03664524]
[1740116531161,5.7033,175.3,175.27,0.03664524]
[1740116531762,5.7025,175.33,175.27,10.17044627]
[1740116532259,10.13380103,175.33,175.27,10.17044627]
[1740116532461,5.7028,175.32,175.27,10.17044627]
[1740116532958,10.13380103,175.33,175.27,10.17044627]
[1740116533161,5.7029,175.31,175.27,10.17044627]
[1740116535362,5.7026,175.32,175.27,15.87454627]
[1740116538460,10.13380103,175.33,175.29,5.7033]
[1740116538766,10.13380103,175.35,175.27,10.17044627]
[1740116539065,10.13380103,175.33,175.27,10.17044627]
[1740116539366,10.13380103,175.33,175.27,0.03664524]
[1740116539664,5.7032,175.31,175.27,0.03664524]
[1740116539867,10.13380103,175.33,175.27,0.03664524]
[1740116540065,10.13380103,175.31,175.27,0.03664524]
[1740116540365,5.7038,175.29,175.27,0.03664524]
[1740116540563,10.13380103,175.31,175.27,0.03664524]
[1740116541065,5.7033,175.3,175.27,0.03664524]
[1740116541666,5.7038,175.29,175.27,0.03664524]
[1740116542162,10.13380103,175.31,175.27,0.03664524]
[1740116542363,5.7039,175.28,175.27,0.03664524]
[1740116550770,15.83740103,175.29,175.27,0.03664524]
[1740116550970,15.02750067,175.34,175.27,5.74054524]
[1740116551170,10.13380103,175.31,175.27,5.74054524]
[1740116551870,10.13380103,175.31,175.27,0.03664524]
[1740116552477,15.83680103,175.31,175.27,0.03664524]
[1740116553669,5.7034,175.3,175.27,0.03664524]
[1740116554174,10.13380103,175.31,175.27,0.03664524]
[1740116554374,5.7033,175.3,175.27,0.03664524]
[1740116555176,10.13380103,175.31,175.27,0.03664524]
[1740116555474,5.7035,175.29,175.27,0.03664524]
[1740116556275,10.13380103,175.31,175.27,0.03664524]
[1740116556477,5.7032,175.3,175.27,0.03664524]
[1740116557775,15.83680103,175.31,175.27,5.74074524]
[1740116558080,10.13380103,175.33,175.27,0.03664524]
[1740116558269,5.7026,175.32,175.28,5.7035]
[1740116558473,10.13380103,175.33,175.27,0.03664524]
[1740116558668,5.7028,175.32,175.27,5.74054524]
[1740116559175,10.13380103,175.33,175.27,5.74054524]
[1740116559374,5.7029,175.31,175.27,5.74054524]
[1740116559578,10.13380103,175.33,175.28,5.7038]
[1740116560072,15.83610103,175.33,175.27,10.17044627]
[1740116560278,10.13380103,175.33,175.27,10.17044627]
[1740116560474,5.7029,175.31,175.27,10.17044627]
[1740116560669,10.13380103,175.33,175.27,15.87434627]
[1740116561178,5.7028,175.32,175.27,15.87434627]
[1740116561880,5.703,175.31,175.27,15.87434627]
[1740116562079,10.13380103,175.33,175.27,10.17044627]
[1740116562278,10.13380103,175.33,175.27,0.03664524]
[1740116562474,5.7033,175.3,175.27,0.03664524]
[1740116563679,5.7029,175.31,175.27,0.03664524]
[1740116563874,10.13380103,175.33,175.27,10.17044627]
[1740116564478,15.83610103,175.33,175.28,5.7035]
[1740116564679,15.83610103,175.33,175.27,10.17044627]
[1740116564879,5.7023,175.33,175.27,10.17044627]
[1740116565382,5.702,175.34,175.29,5.7034]
[1740116565682,10.13380103,175.35,175.29,10.13380103]
[1740116566280,10.13380103,175.35,175.31,5.7026]
[1740116566780,20.88141749,175.37,175.31,10.17336619]
[1740116566969,20.88141749,175.37,175.33,5.702]
[1740116567883,16.44861646,175.37,175.33,5.702]
[1740116568788,16.44861646,175.37,175.32,5.7025]
[1740116569281,5.701,175.37,175.32,5.7025]
[1740116570380,5.7016,175.36,175.31,15.87616619]
[1740116571084,5.7019,175.35,175.31,10.17336619]
[1740116572784,10.13380103,175.37,175.31,10.17336619]
[1740116573484,5.7018,175.35,175.31,10.17336619]
[1740116573680,10.13380103,175.35,175.31,0.03956516]
[1740116573881,10.13380103,175.33,175.31,0.03956516]
[1740116574084,5.7026,175.32,175.31,0.03956516]
[1740116574284,10.13380103,175.33,175.31,0.03956516]
[1740116574481,5.7019,175.34,175.31,0.03956516]
[1740116574881,10.13380103,175.35,175.31,0.03956516]
[1740116575081,5.7023,175.33,175.31,0.03956516]
[1740116575979,10.13380103,175.35,175.31,0.03956516]
[1740116576185,5.702,175.34,175.31,0.03956516]
[1740116577285,15.83560103,175.35,175.31,0.03956516]
[1740116578787,5.7019,175.34,175.31,0.03956516]
[1740116578987,10.13380103,175.35,175.31,0.03956516]
[1740116579280,10.74761646,175.4,175.31,0.03956516]
[1740116579281,15.83530103,175.36,175.31,0.03956516]
[1740116579589,15.83530103,175.36,175.31,10.17336619]
[1740116580388,15.83530103,175.36,175.32,5.7025]
[1740116581187,10.13380103,175.36,175.32,5.7025]
[1740116581389,10.13380103,175.39,175.35,5.7013]
[1740116581987,15.83410103,175.39,175.35,5.73826625]
[1740116582184,15.83410103,175.39,175.35,0.03696625]
[1740116582785,10.13380103,175.39,175.35,0.03696625]
[1740116582990,5.7,175.4,175.35,15.87226728]
[1740116583293,10.13380103,175.41,175.35,10.17076728]
[1740116583685,5.7003,175.39,175.35,10.17076728]
[1740116583889,10.13380103,175.41,175.35,10.17076728]
[1740116584287,5.7,175.4,175.35,10.17076728]
[1740116584689,5.7,175.4,175.35,15.87226728]
[1740116588593,10.13380103,175.41,175.35,15.87226728]
[1740116588594,5.7003,175.39,175.35,15.87226728]
[1740116588896,5.7003,175.39,175.35,10.17076728]
[1740116589189,10.13380103,175.41,175.35,10.17076728]
[1740116589395,5.7,175.4,175.36,5.7012]
[1740116589696,10.13380103,175.41,175.35,10.17076728]
[1740116589893,10.13380103,175.43,175.37,10.13380103]
[1740116590193,10.13380103,175.43,175.39,5.7002]
[1740116590389,10.13380103,175.43,175.37,10.13380103]
[1740116590592,10.13380103,175.43,175.39,0.03870096]
[1740116590991,15.83290103,175.43,175.39,5.73890096]
[1740116591189,15.83290103,175.43,175.39,0.03870096]
[1740116592893,5.6991,175.43,175.39,0.03870096]
[1740116593093,5.6991,175.43,175.39,10.17250199]
[1740116595699,10.13380103,175.44,175.39,10.17250199]
[1740116595998,5.6993,175.42,175.39,10.17250199]
[1740116598103,10.13380103,175.44,175.39,0.03870096]
[1740116598804,5.6999,175.41,175.39,0.03870096]
[1740116600094,10.13380103,175.44,175.39,0.03870096]
[1740116600293,5.6999,175.4,175.39,0.03870096]
[1740116601305,15.83370103,175.4,175.39,0.03870096]
[1740116602002,15.83370103,175.4,175.29,5.4099]
[1740116602003,5.7015,175.36,175.33,10.13380103]
[1740116602202,10.13380103,175.38,175.31,10.13380103]
[1740116602403,10.13380103,175.36,175.31,10.13380103]
[1740116602602,10.13380103,175.36,175.29,10.13380103]
[1740116602808,10.13380103,175.34,175.27,10.13380103]
[1740116603206,0.04146434,175.32,175.29,10.17639474]
[1740116604408,0.04146434,175.32,175.31,15.83670103]
[1740116606016,5.7004,175.39,175.31,10.13380103]
[1740116606212,5.7004,175.39,175.35,10.13380103]
[1740116606413,24.41696909,175.42,175.35,10.13380103]
[1740116606608,13.65560103,175.42,175.37,10.13380103]
[1740116607215,5.6997,175.41,175.38,0.04320259]
[1740116608613,10.13380103,175.43,175.39,10.13380103]
[1740116608808,197.88929798,175.44,175.39,10.13380103]
[1740116609218,11.92370103,175.45,175.39,10.13380103]
[1740116609712,11.92370103,175.45,175.38,10.17700362]
[1740116611110,5.6994,175.42,175.38,10.17700362]
[1740116612914,10.13380103,175.45,175.38,10.17700362]
[1740116613121,10.76894534,175.46,175.4,15.83370103]
[1740116613420,159.43380103,175.47,175.4,10.13380103]
[1740116613821,159.43380103,175.47,175.42,0.0419094]
[1740116614921,165.13170103,175.47,175.42,0.0419094]
[1740116616121,159.43380103,175.47,175.42,0.0419094]
[1740116616318,10.13380103,175.43,175.42,0.0419094]
[1740116617022,15.83280103,175.43,175.42,0.0419094]
[1740116620318,5.6988,175.44,175.42,0.0419094]
[1740116620524,10.13380103,175.45,175.42,0.0419094]
[1740116621023,5.6987,175.44,175.42,0.0419094]
[1740116621322,10.13380103,175.45,175.42,0.0419094]
[1740116622626,159.43380103,175.47,175.42,0.0419094]
[1740116624832,10.13380103,175.47,175.42,0.0419094]
[1740116626437,5.6989,175.44,175.42,0.0419094]
[1740116627637,10.13380103,175.47,175.42,0.0419094]
[1740116628237,5.6989,175.44,175.42,0.0419094]
[1740116628437,10.13380103,175.47,175.42,0.0419094]
[1740116628637,10.13380103,175.45,175.42,0.0419094]
[1740116629239,5.6989,175.44,175.42,0.0419094]
[1740116629436,10.13380103,175.45,175.42,0.0419094]
[1740116629837,5.6989,175.44,175.42,0.0419094]
[1740116630139,10.13380103,175.45,175.42,0.0419094]
[1740116630338,15.83220103,175.45,175.42,0.0419094]
[1740116630541,10.13380103,175.46,175.42,0.0419094]
[1740116630941,5.6984,175.45,175.42,0.0419094]
[1740116633143,15.83250103,175.44,175.42,0.0419094]
[1740116633346,10.13380103,175.46,175.42,0.0419094]
[1740116634433,5.6984,175.45,175.42,0.0419094]
[1740116635246,5.6983,175.45,175.42,0.0419094]
[1740116636546,5.6989,175.44,175.42,0.0419094]
[1740116636746,10.13380103,175.44,175.42,9.4e-06]
[1740116637839,5.699,175.43,175.42,9.4e-06]
[1740116638044,10.13380103,175.44,175.42,9.4e-06]
[1740116638746,5.699,175.43,175.42,9.4e-06]
[1740116641849,12.11500045,175.43,175.42,9.4e-06]
[1740116642052,11.1686,175.43,175.42,9.4e-06]
[1740116642454,12.11499925,175.43,175.42,9.4e-06]
[1740116643148,12.11505801,175.43,175.42,9.4e-06]
[1740116644048,5.4696,175.43,175.42,9.4e-06]
[1740116644247,21.30240103,175.43,175.42,9.4e-06]
[1740116645753,219.19169901,175.43,175.42,9.4e-06]
[1740116647251,21.30240103,175.43,175.42,9.4e-06]
[1740116651757,16.54976891,175.43,175.31,10.13380103]
[1740116651961,16.54976891,175.43,175.29,10.13380103]
[1740116651962,10.13380103,175.35,175.29,10.13380103]
[1740116652957,5.74094489,175.34,175.3,0.03745237]
[1740116653455,0.03904489,175.34,175.3,0.03745237]
[1740116654459,0.03904489,175.34,175.3,5.74055237]
[1740116654663,0.03904489,175.34,175.3,0.03745237]
[1740116655962,0.03904489,175.34,175.3,5.74045237]
[1740116657959,0.03904489,175.34,175.3,0.03745237]
[1740116659365,5.7025,175.33,175.3,0.03745237]
[1740116660262,5.7029,175.31,175.3,0.03745237]
[1740116660460,15.83670103,175.31,175.3,0.03745237]
[1740116668668,15.83670103,175.31,175.3,5.237e-05]
[1740116671174,5.7029,175.31,175.3,5.237e-05]
[1740116680590,7.4627,175.31,175.3,5.237e-05]
[1740116687089,8.40979769,175.31,175.3,5.237e-05]
[1740116688790,8.40982005,175.31,175.3,5.237e-05]
[1740116690392,8.40982084,175.31,175.3,5.237e-05]
[1740116691191,5.7055,175.23,175.2,15.59680103]
[1740116692184,10.13380103,175.27,175.2,15.59680103]
[1740116692391,0.04135316,175.23,175.2,15.63903581]
[1740116694295,0.04135316,175.23,175.22,10.13380103]
[1740116695487,0.04135316,175.23,175.22,15.83960103]
[1740116704304,0.04135316,175.23,175.22,10.13380103]
[1740116704603,0.04135316,175.23,175.22,15.83960103]
[1740116705503,0.04135316,175.23,175.22,10.13380103]
[1740116705706,0.04135316,175.23,175.21,10.13380103]
[1740116707605,0.04135316,175.23,175.21,15.83990103]
[1740116708205,0.04135316,175.23,175.22,5.7058]
[1740116712109,0.04135316,175.23,175.21,15.83990103]
[1740116712609,0.04135316,175.23,175.22,5.7058]
[1740116712908,0.04135316,175.23,175.21,10.13380103]
[1740116715808,0.04135316,175.23,175.22,5.7058]
[1740116718210,0.04135316,175.23,175.21,15.83980103]
[1740116718906,0.04135316,175.23,175.21,10.13380103]
[1740116719808,0.04135316,175.23,175.2,0.04223478]
[1740116719809,10.13380103,175.22,175.2,0.04223478]
[1740116720714,5.7061,175.21,175.2,0.04223478]
[1740116721815,10.13380103,175.22,175.13,74.06309737]
[1740116722012,10.13380103,175.18,175.13,74.06309737]
[1740116722815,0.03653838,175.17,175.14,0.03663089]
[1740116723116,0.03653838,175.17,175.15,10.13380103]
[1740116723817,7.5,175.23,175.15,10.13380103]
[1740116724021,7.5,175.23,175.18,10.13380103]
[1740116724512,7.5,175.23,175.15,3.6785]
[1740116724513,197.88929798,175.26,175.22,10.13380103]
[1740116725017,197.93096583,175.26,175.22,15.88042779]
[1740116725215,197.93096583,175.26,175.22,10.17462779]
[1740116725411,197.93096583,175.26,175.22,15.88032779]
[1740116725611,197.93096583,175.26,175.22,10.17462779]
[1740116726418,0.04166785,175.26,175.22,10.17462779]
[1740116726914,10.17546888,175.26,175.22,10.17462779]
[1740116727120,10.17546888,175.26,175.22,0.04082676]
[1740116727420,15.88026888,175.26,175.22,0.04082676]
[1740116727620,10.17546888,175.26,175.22,0.04082676]
[1740116728421,5.7049,175.25,175.22,0.04082676]
[1740116728722,10.17546888,175.26,175.22,0.04082676]
[1740116729020,5.7051,175.25,175.22,0.04082676]
[1740116730021,15.88006888,175.26,175.22,0.04082676]
[1740116730628,0.04166785,175.26,175.22,10.17462779]
[1740116730922,0.04166785,175.26,175.23,5.7055]
[1740116731621,0.04166785,175.26,175.22,15.88012779]
[1740116733224,5.74616785,175.26,175.22,10.17462779]
[1740116733424,0.04166785,175.26,175.22,10.17462779]
[1740116733725,5.7049,175.25,175.22,10.17462779]
[1740116734528,0.04166785,175.26,175.22,10.17462779]
[1740116734725,5.74626785,175.26,175.22,10.17462779]
[1740116735629,0.04166785,175.26,175.22,15.88042779]
[1740116735823,4.28127834,175.31,175.25,10.13380103]
[1740116736130,10.80535912,175.33,175.31,5.7028]
[1740116736429,191.0557571,175.34,175.32,10.13380103]
[1740116736628,191.0557571,175.34,175.33,5.7022]
[1740116737226,182.4759571,175.34,175.33,5.7022]
[1740116737731,182.4759571,175.34,175.32,10.17685459]
[1740116738323,0.04032154,175.35,175.32,10.17685459]
[1740116738521,0.04032154,175.35,175.34,10.13380103]
[1740116742333,0.04032154,175.35,175.34,15.83570103]
[1740116743031,5.2748,175.43,175.34,10.13380103]
[1740116743231,5.2748,175.43,175.38,10.13380103]
[1740116744240,5.2748,175.43,175.39,0.04235166]
[1740116744427,5.6993,175.42,175.39,0.04235166]
[1740116744632,5.2748,175.43,175.39,0.04235166]
[1740116746034,5.6995,175.42,175.39,0.04235166]
[1740116747034,10.9739,175.43,175.39,0.04235166]
[1740116748441,5.2748,175.43,175.39,0.04235166]
[1740116750340,3.5653,175.43,175.4,10.13380103]
[1740116752239,3.5653,175.43,175.4,15.83370103]
[1740116754744,3.5653,175.43,175.41,5.6996]
[1740116756046,3.5653,175.43,175.4,15.83370103]
[1740116757147,3.5653,175.43,175.41,5.6996]
[1740116759649,3.5653,175.43,175.4,10.13380103]
[1740116759650,3.5653,175.43,175.39,0.04235166]
[1740116759845,10.13380103,175.42,175.35,10.13380103]
[1740116760046,5.6999,175.41,175.35,10.13380103]
[1740116760948,5.6999,175.41,175.26,18.9085]
[1740116760949,0.03952212,175.4,175.37,10.13380103]
[1740116761149,10.13380103,175.42,175.37,10.13380103]
[1740116761350,0.03930473,175.4,175.37,10.17521457]
[1740116761753,0.03930473,175.4,175.37,15.87611457]
[1740116762144,0.03930473,175.4,175.37,10.17521457]
[1740116763455,0.03930473,175.4,175.37,0.04141354]
[1740116764755,10.13380103,175.38,175.31,10.13380103]
[1740116765149,5.7012,175.37,175.31,15.83640103]
[1740116765957,0.04312329,175.36,175.32,0.04064886]
[1740116766254,5.7019,175.34,175.32,0.04064886]
[1740116767253,5.7016,175.35,175.32,0.04064886]
[1740116767450,11.95562432,175.36,175.32,0.04064886]
[1740116767750,11.95562432,175.36,175.25,10.87193607]
[1740116767751,10.13380103,175.32,175.25,10.87193607]
[1740116767951,10.13380103,175.3,175.25,10.87193607]
[1740116768151,10.13380103,175.3,175.25,0.73813504]
[1740116768356,10.13380103,175.28,175.22,10.13380103]
[1740116768650,0.03606063,175.27,175.23,0.03941322]
[1740116769156,10.13380103,175.26,175.23,0.03941322]
[1740116769657,10.13380103,175.26,175.13,63.92929634]
[1740116769658,10.13380103,175.24,175.18,10.13380103]
[1740116770158,5.7055,175.23,175.18,10.13380103]
[1740116770347,10.13380103,175.24,175.18,10.13380103]
[1740116770860,0.04077886,175.23,175.19,0.03847469]
[1740116771751,0.04077886,175.23,175.19,5.74497469]
[1740116772154,0.04077886,175.23,175.2,5.7065]
[1740116772856,0.04077886,175.23,175.19,5.74517469]
[1740116774156,0.04077886,175.23,175.19,0.03847469]
[1740116774353,5.74657886,175.23,175.19,0.03847469]
[1740116774750,1.82477886,175.23,175.19,0.03847469]
[1740116775857,1.82477886,175.23,175.2,5.7062]
[1740116777760,10.13380103,175.22,175.19,0.03847469]
[1740116779451,15.83960103,175.22,175.19,0.03847469]
[1740116779760,10.13380103,175.22,175.13,69.63779634]
[1740116779960,10.13380103,175.22,175.15,10.13380103]
[1740116780565,5.7065,175.2,175.15,10.13380103]
[1740116781061,10.13380103,175.22,175.16,0.03736582]
[1740116781062,0.04206485,175.19,175.16,0.03736582]
[1740116781560,0.04206485,175.19,175.17,10.13380103]
[1740116782352,0.04206485,175.19,175.18,5.7071]
[1740116787163,0.04206485,175.19,175.18,15.84090103]
[1740116788865,1.7005,175.25,175.23,5.7053]
[1740116789265,1.7005,175.25,175.22,10.13380103]
[1740116790165,1.74027056,175.25,175.24,5.7052]
[1740116791266,7.44517056,175.25,175.22,15.88287787]
[1740116791467,7.44517056,175.25,175.22,5.74907684]
[1740116791968,1.74027056,175.25,175.22,5.74907684]
[1740116792157,1.74027056,175.25,175.22,0.04327684]
[1740116792556,1.6955,175.24,175.22,0.04327684]
[1740116792761,17.53450103,175.24,175.22,0.04327684]
[1740116794572,11.82930103,175.24,175.22,0.04327684]
[1740116794770,5.7057,175.23,175.18,10.13380103]
[1740116794973,10.13380103,175.22,175.16,10.13380103]
[1740116795169,10.13380103,175.22,175.18,5.707]
[1740116795369,17.53450103,175.24,175.16,10.13380103]
[1740116795670,11.82930103,175.24,175.2,5.7063]
[1740116795966,0.03956285,175.23,175.2,5.7063]
[1740116796268,10.13380103,175.21,175.08,0.67234471]
[1740116796460,10.13380103,175.16,175.08,10.80614574]
[1740116796666,5.7082,175.15,175.09,5.7097]
[1740116796969,10.13380103,175.14,175.08,10.80614574]
[1740116797169,10.13380103,175.14,175.08,16.51644574]
[1740116797671,0.04059987,175.13,175.09,0.03757056]
[1740116798171,0.04059987,175.13,175.1,10.13380103]
[1740116798567,0.04059987,175.13,175.12,10.13380103]
[1740116798963,0.04059987,175.13,175.12,15.84290103]
[1740116799170,1.7323,175.21,175.12,10.13380103]
[1740116799370,5.7065,175.2,175.15,10.13380103]
[1740116799964,15.84060103,175.19,175.13,10.13380103]
[1740116800173,1.7323,175.21,175.13,15.84240103]
[1740116800372,0.03833551,175.18,175.14,0.04081508]
[1740116800771,0.03833551,175.18,175.14,5.74911508]
[1740116801776,0.03833551,175.18,175.15,5.708]
[1740116803573,0.03833551,175.18,175.14,0.04081508]
[1740116803574,0.03833551,175.18,175.16,5.7077]
[1740116803774,0.03833551,175.18,175.15,10.13380103]
[1740116804575,0.03833551,175.18,175.17,5.7074]
[1740116805073,0.03833551,175.18,175.15,15.84160103]
[1740116805274,0.03833551,175.18,175.15,10.13380103]
[1740116806669,0.03833551,175.18,175.17,5.7074]
[1740116808867,0.03833551,175.18,175.17,15.84120103]
[1740116810077,3.551e-05,175.18,175.17,15.84120103]
[1740116815472,9.2691,175.25,175.17,10.13380103]
[1740116815676,5.7053,175.24,175.21,10.13380103]